Cogmind - Beta 15 @@@ ROGUE MODE // 2025.06.22 @ 09:59:17 Player: ToBeDefined Result: Destroyed by L-31 Rogue with Katana Performance ------------- Evolutions (2) 1000 Regions Visited (4) 800 Robots Destroyed (51) 255 Value Destroyed (1497) 1497 Prototype IDs (1) 20 Alien Tech Used (0) 0 Bonus (76) 76 TOTAL SCORE: 3648 Bonus ------- Follower Combat Kills 76 Cogmind --------- Core Integrity 0/550 Matter 90/300 Energy 18/100 System Corruption 2% Temperature Critical (596) Movement Core (450) Ox8 Location -8/Materials Parts ------- > --- POWER (1) -------- (None) > --- PROPULSION (4) --- (None) > --- UTILITY (4) ------ Scrap Suit Large Storage Unit > --- WEAPON (2) ------- Spread Laser > --- INVENTORY (15) --- Ion Engine Subdweller Power Source Improved Power Shielding Heavy Armor Plating Improved Trap Extractor (0/6) Field Recycling Unit (0) Peak State ------------ > --- POWER ------------ Light Nuclear Core > --- PROPULSION ------- Advanced Treads > --- UTILITY ---------- Scrap Suit Large Storage Unit Splice Drone Bay > --- WEAPON ----------- Spread Laser Spread Laser > --- INVENTORY -------- Ion Engine Subdweller Power Source Improved Power Shielding Heavy Armor Plating Improved Trap Extractor Field Recycling Unit Spread Laser Gauss Rifle Grenade Launcher [Rating: 28] Favorites ----------- Power Ion Engine Engine Ion Engine Power Core Light Nuclear Core Propulsion Light Treads Treads Light Treads Utility Large Storage Unit Device Field Recycling Unit Storage Large Storage Unit Protection Improved Light Armor Plating Weapon Heavy EM Pulse Gun Energy Gun Heavy EM Pulse Gun Ballistic Gun Heavy Battle Rifle Launcher Grenade Launcher Build | -11 -10 -10 -10 -8 ------- Run | Yrd Mat Min Sub Mat Slots Evolved 4 | . . . . 4 Power . | . . . . . Propulsion 2 | . . . . 2 Utility 2 | . . . . 2 Weapon . | . . . . . Parts Attached 36 | 6 11 10 2 7 Power 5 | 1 . 3 . 1 Engine 3 | 1 . 2 . . Core 2 | . . 1 . 1 Reactor . | . . . . . Propulsion 4 | 2 1 . . 1 Treads 4 | 2 1 . . 1 Leg . | . . . . . Wheel . | . . . . . Hover . | . . . . . Flight . | . . . . . Utility 13 | 1 6 3 . 3 Device 4 | . 1 2 . 1 Storage 4 | 1 3 . . . Processor . | . . . . . Hackware . | . . . . . Protection 5 | . 2 1 . 2 Artifact . | . . . . . Weapon 14 | 2 4 4 2 2 Energy Gun 10 | 1 4 3 1 1 Energy Cannon . | . . . . . Ballistic Gun 3 | 1 . . 1 1 Ballistic Cannon . | . . . . . Launcher 1 | . . 1 . . Special Weapon . | . . . . . Impact Weapon . | . . . . . Slashing Weapon . | . . . . . Piercing Weapon . | . . . . . Special Melee Weapon . | . . . . . Unidentified Prototypes 1 | . . 1 . . Parts Lost 18 | . . 4 5 9 Power 2 | . . 1 . 1 Propulsion 4 | . . 1 2 1 Utility 3 | . . . . 3 Weapon 9 | . . 2 3 4 Highest Loss Streak 7 | . . 2 2 7 To Critical Strikes . | . . . . . Average Backups 11 | 2 10 13 12 8 Power 1 | . 1 1 1 1 Propulsion . | 1 . . . . Utility 4 | . 2 5 6 4 Weapon 5 | . 5 5 5 2 Tool/Special . | . . . . . Unused Backups 13 | . 6 2 3 2 Power 2 | . . . 1 1 Propulsion 3 | . 3 . . . Utility 4 | . 1 2 . 1 Weapon 4 | . 2 . 2 . Tool/Special . | . . . . . Average Slot Usage (%) 83 | . 97 99 73 56 Engine 12 | . 14 10 14 5 Treads 13 | . 28 28 2 4 Device 2 | . 5 2 . 9 Storage 13 | . 14 14 14 9 Protection 11 | . 6 11 14 7 Energy Gun 24 | . 26 26 23 14 Ballistic Gun 1 | . 1 . 3 . Launcher 1 | . . 1 1 3 Peak Build Rating 28 | 6 11 18 15 28 Average Rating 13 | 5 10 14 13 21 On Entrance 8 | . 6 11 15 12 Naked Turns . | . . . . . Heaviest Build 54 | 14 54 40 35 54 Greatest Support 40 | 40 40 40 40 22 Greatest Overweight (x) 17 | 2 1 . 11 17 Average Overweight (x) 2 | . . . 7 4 Largest Inventory Capacity 20 | 8 20 15 15 15 Average Capacity 14 | 7 12 15 15 15 Most Carried 15 | 4 15 15 15 11 Average Carried 13 | 2 10 14 14 9 Final Capacity 15 | 8 15 15 15 15 Final Carried 15 | 4 15 15 13 7 Class Distribution -------------------- 100% | Mutant Dominant Class ---------------- Mutant | -10/Materials Mutant | -10/Mines Mutant | -10/Subcaves Mutant | -8/Materials Resources | -11 -10 -10 -10 -8 ----------- Run | Yrd Mat Min Sub Mat Matter Collected 740 | 239 182 185 75 59 Remotely . | . . . . . Salvage Created 1624 | 30 536 444 258 356 Parts 112 | 2 32 24 19 35 Haulers Intercepted 1 | . 1 . . . Recyclers Shooed 4 | . . . . 4 Parts Field Recycled . | . . . . . Retrieved Matter . | . . . . . Parts Self-Destructed 5 | . . . 5 . Prevented 1 | . . . 1 . Kills | -11 -10 -10 -10 -8 ------- Run | Yrd Mat Min Sub Mat Combat Hostiles Destroyed 39 | . 13 11 5 10 Guns 29 | . 12 6 4 7 AOE 9 | . 1 5 . 3 Classes Destroyed 12 | 1 5 1 1 4 Builder 3 | . . . . 3 Tunneler 2 | 1 . 1 . . Hauler 1 | . 1 . . . Recycler 2 | . . 1 . 1 Operator 1 | . 1 . . . Watcher 3 | . 2 . . 1 Swarmer 8 | . 3 3 . 2 Grunt 23 | . 10 8 . 5 Brawler 1 | . . . . 1 Sentry 1 | . . . . 1 Hunter 1 | . . . . 1 Subdweller 5 | . . . 5 . Best Kill Streak 6 | 1 3 3 2 6 Combat Bots Only 5 | . 3 3 2 5 Max Kills in Single Turn 3 | 1 2 2 1 3 Gunslinging . | . . . . . Exploded 2 | . 1 2 . 1 Melee . | . . . . . Uniques/NPCs Destroyed . | . . . . . Combat | -11 -10 -10 -10 -8 -------- Run | Yrd Mat Min Sub Mat Hostile Shots Fired 214 | . 38 36 34 106 Missed 63 | . 13 11 13 26 Hits 151 | . 25 25 21 80 Melee 11 | . . . . 11 Projectile 140 | . 25 25 21 69 Critical Strikes 7 | . . . . 7 Damage Taken 3139 | . 381 436 555 1767 Core 815 | . 39 39 156 581 Absorbed by Shields . | . . . . . Regen/Repaired (Parts) 10 | . 10 . . . Core Remaining (%) 53 | 100 . . 6 . Volleys Fired 125 | 2 35 27 29 32 Largest 2 | 2 2 2 2 2 Hottest 130 | 70 130 105 130 130 Shots Fired 236 | 4 69 52 49 62 Gun 218 | 4 69 46 45 54 Cannon . | . . . . . Launcher 18 | . . 6 4 8 Special . | . . . . . Kinetic 21 | 2 5 . 11 3 Thermal 85 | 2 26 4 2 51 Explosive 18 | . . 6 4 8 Electromagnetic 112 | . 38 42 32 . Robot Hit Streak 16 | 1 6 8 14 16 Robot Miss Streak 10 | 1 4 3 2 10 Penetration Max . | . . . . . Secondary Targets 1 | . . 1 . . Max Gunslinging Chain 1 | . . 1 . . Shots Hit Robots 167 | 2 50 31 33 51 Core Hits 125 | 1 36 18 9 61 Critical Kills . | . . . . . Critical Parts Destroyed . | . . . . . Critical Strikes 2 | . . 1 1 . Burn 1 | . . 1 . . Corrupt 1 | . . . 1 . Melee Attacks . | . . . . . Impact . | . . . . . Slashing . | . . . . . Piercing . | . . . . . Sneak Attacks . | . . . . . Combat Hostiles . | . . . . . Follow-up Attacks . | . . . . . Damage Inflicted 3355 | 22 739 930 478 1186 Guns 2164 | 22 706 415 478 543 Cannons . | . . . . . Explosions 1191 | . 33 515 . 643 Melee . | . . . . . Ramming . | . . . . . Kinetic 283 | 22 48 . 213 . Thermal 958 | . 252 160 3 543 Explosive 1061 | . . 418 . 643 Electromagnetic 1053 | . 439 352 262 . Impact . | . . . . . Slashing . | . . . . . Piercing . | . . . . . Highest Corruption 2 | . . . . 2 Average Corruption 1 | . . . . 1 Corruption Purged . | . . . . . Corruption Blocked . | . . . . . Effects 5 | . . . . 5 Message Errors 1 | . . . . 1 Matter Fused 2 | . . . . 2 Heat Flow Errors 1 | . . . . 1 Energy Discharges 1 | . . . . 1 Overload Shots . | . . . . . Overflow Damage 34 | . . 26 . 8 Projectiles . | . . . . . Explosions 34 | . . 26 . 8 Melee . | . . . . . Knockbacks . | . . . . . Impact . | . . . . . Kinetic . | . . . . . Secondary . | . . . . . Self-Inflicted Damage 363 | . 43 57 36 227 Shots 13 | . 1 2 2 8 Rammed . | . . . . . Targets Rammed . | . . . . . Kicked . | . . . . . Crushed . | . . . . . Highest Temperature 720 | 9 352 276 15 720 Average Temperature 140 | 6 115 100 10 229 Received Heat Transfer 849 | . 156 171 90 432 Effects 20 | . 3 1 . 16 Shutdowns 1 | . . . . 1 Interference 6 | . 2 1 . 3 Matter Decay 2 | . . . . 2 Damage (minor) 3 | . 1 . . 2 Damage (major) 4 | . . . . 4 Damage (core) 4 | . . . . 4 Siege Activations . | . . . . . Martial Activations . | . . . . . Shielding Activations . | . . . . . Robots Disrupted . | . . . . . Combat Hostiles . | . . . . . Robots Corrupted 1 | . . . 1 . Combat Hostiles 1 | . . . 1 . Parts Fried 2 | . 1 . 1 . Impact Corruptions . | . . . . . Robots Melted . | . . . . . Combat Hostiles . | . . . . . Parts Melted 1 | . . . 1 . Heat Transferred 1354 | . 369 285 5 695 Parts Sabotaged . | . . . . . Parts Stolen . | . . . . . Parts Stripped . | . . . . . Power Chain Reactions 1 | . . 1 . . Alert | -11 -10 -10 -10 -8 ------- Run | Yrd Mat Min Sub Mat Maximum Alert Level . | . . . . . Low Security (%) 100 | 100 100 100 . 100 Level 1 . | . . . . . Level 2 . | . . . . . Level 3 . | . . . . . Level 4 . | . . . . . Level 5 . | . . . . . High Security . | . . . . . Max Security . | . . . . . Peak Influence 153 | 5 107 95 . 153 Initial 31 | . 3 31 . . Average 30 | . 22 30 . 62 Influence Increases 1145 | 5 384 367 . 389 Destroy 0b10 Robot/C 720 | . 260 220 . 240 Destroy 0b10 Robot/NC 60 | 5 20 10 . 25 Destroy Leader 158 | . 66 50 . 42 Allied During Kill 12 | . . . . 12 Successful Hack 23 | . 23 . . . Disable Machine 60 | . 15 15 . 30 Destroy Structure 82 | . . 57 . 25 Lose Combat Pursuer 30 | . . 15 . 15 Influence Decreases 1028 | . 309 447 . 272 Entered New Map 51 | . 2 49 . . Time Decay 739 | . 232 345 . 162 Lost Part 123 | . . 33 . 90 Lost Ally 40 | . . 20 . 20 Purge Threat 75 | . 75 . . . Squads Dispatched 8 | . 3 . . 5 Investigation 4 | . 2 . . 2 Extermination . | . . . . . Reinforcement 4 | . 1 . . 3 Assault . | . . . . . Garrison . | . . . . . Intercept . | . . . . . Searches Triggered . | . . . . . Construction Impeded 2 | . . . . 2 Haulers Reinforced . | . . . . . Active Scanning Responses . | . . . . . Cargo Convoy Interrupts . | . . . . . Stealth | -11 -10 -10 -10 -8 --------- Run | Yrd Mat Min Sub Mat Distress Signals 4 | . 1 . . 3 Communications Jammed . | . . . . . Distress Signals . | . . . . . Times Spotted 67 | . 17 12 5 33 Peak Tracking Total 12 | . 3 3 2 12 Tactical Retreats 2 | . . 1 . 1 Traps | -11 -10 -10 -10 -8 ------- Run | Yrd Mat Min Sub Mat Traps Triggered 3 | . 1 1 1 . Indirectly . | . . . . . Trap Hack Attempts . | . . . . . Triggered . | . . . . . Disarmed . | . . . . . Reprogrammed . | . . . . . Reused . | . . . . . Traps Extracted . | . . . . . Installed 1 | . . . 1 . Triggered . | . . . . . Most Traps Carried 1 | . . . 1 . Machines | -11 -10 -10 -10 -8 ---------- Run | Yrd Mat Min Sub Mat Machines Disabled 4 | . 1 1 . 2 Max in Single Turn 2 | . 1 1 . 2 Machines Repaired . | . . . . . Machines Dismantled . | . . . . . Machines Sabotaged . | . . . . . Overloaded Fab Kills . | . . . . . Hacking | -11 -10 -10 -10 -8 --------- Run | Yrd Mat Min Sub Mat Machines Accessed 11 | . 7 3 . 1 Terminals 7 | . 6 1 . . Fabricators . | . . . . . Repair Stations 1 | . 1 . . . Recycling Units 1 | . . . . 1 Scanalyzers . | . . . . . Garrison Access . | . . . . . Total Hacks 24 | . 18 3 . 3 Successful 9 | . 6 3 . . Failed 15 | . 12 . . 3 Catastrophic 3 | . 3 . . . Database Lockouts . | . . . . . Manual . | . . . . . Terminals 16 | . 15 1 . . Fabricators . | . . . . . Repair Stations 3 | . 3 . . . Recycling Units 3 | . . . . 3 Scanalyzers . | . . . . . Garrison Access . | . . . . . Terminal Hacks 7 | . 4 3 . . Open Door 2 | . . 2 . . Branch Access Points 1 | . 1 . . . Unreport Threat 1 | . 1 . . . Locate Traps 1 | . 1 . . . Dispatch Records 1 | . . 1 . . Recall Investigation 1 | . 1 . . . Fabricator Hacks . | . . . . . Repair Station Hacks 2 | . 2 . . . Scan Component 1 | . 1 . . . Repair 1 | . 1 . . . Recycling Unit Hacks . | . . . . . Scanalyzer . | . . . . . Garrison Access Hacks . | . . . . . Unauthorized Hacks . | . . . . . Terminals . | . . . . . Fabricators . | . . . . . Repair Stations . | . . . . . Recycling Units . | . . . . . Scanalyzers . | . . . . . Garrison Access . | . . . . . Data Cores Recovered . | . . . . . Used . | . . . . . Hacking Detections 7 | . 6 . . 1 Full Trace Events 3 | . 2 . . 1 Feedback Events . | . . . . . Feedback Blocked . | . . . . . Robot Schematics Acquired . | . . . . . Robots Built . | . . . . . Authchips . | . . . . . Time . | . . . . . Total Robot Build Rating . | . . . . . Part Schematics Acquired . | . . . . . Parts Built . | . . . . . Authchips . | . . . . . Time . | . . . . . Total Part Build Rating . | . . . . . Parts Repaired 1 | . 1 . . . Time 13 | . 13 . . . Parts Recycled . | . . . . . Recycled Matter . | . . . . . Retrieved Matter . | . . . . . Retrieved Components . | . . . . . Parts Scanalyzed . | . . . . . Part Schematics Acquired . | . . . . . Parts Damaged . | . . . . . Bothacking | -11 -10 -10 -10 -8 ------------ Run | Yrd Mat Min Sub Mat Used RIF Installer . | . . . . . Robots Hacked . | . . . . . Non-combat . | . . . . . Combat . | . . . . . Robot Hacks Applied . | . . . . . Relay Couplers Released . | . . . . . Fabnet Peak Effective % . | . . . . . Robots Rewired . | . . . . . Allies Hacked . | . . . . . Hacks Repelled . | . . . . . Allies | -11 -10 -10 -10 -8 -------- Run | Yrd Mat Min Sub Mat Total Allies 5 | . . 1 . 4 Largest Group 2 | . . 1 . 2 Highest-Rated Group 32 | . . 31 . 32 Highest-Rated Ally 31 | . . 31 . 21 Total Orders 4 | . . 1 . 3 FOLLOW 1 | . . . . 1 RETURN 3 | . . 1 . 2 Ally Attacks 37 | . . 6 . 31 Total Damage 204 | . . 85 . 119 Kills 2 | . . . . 2 Allies Corrupted . | . . . . . Allies Melted . | . . . . . Intel | -11 -10 -10 -10 -8 ------- Run | Yrd Mat Min Sub Mat Active Infowar (turns) . | . . . . . Robot Analysis Total . | . . . . . Derelict Logs Recovered 3 | . . 2 1 . Drone Launches 27 | . . 1 . 26 Drone Recoveries 26 | . . 1 . 25 Exploration | -11 -10 -10 -10 -8 ------------- Run | Yrd Mat Min Sub Mat Turns Passed 6261 | 111 1476 1138 3071 465 Spaces Moved 2098 | 61 735 592 628 82 Core 467 | 5 . . 446 16 Treads 1631 | 56 735 592 182 66 Legs . | . . . . . Wheels . | . . . . . Hover . | . . . . . Flight . | . . . . . Fastest Speed 50 | 50 160 160 160 225 Average Speed 261 | 152 161 160 472 369 Slowest Speed 900 | 160 240 160 600 900 Overloaded Moves . | . . . . . Propulsion Burnouts . | . . . . . Robots Hopped . | . . . . . Potential Cave-ins . | . . . . . Cave-ins Triggered . | . . . . . Exploration Rate (%) 46 | 5 94 84 32 17 Regions Visited 4 Branch Regions 2 Pre-discovered Areas 1 | . . 1 . . Known Exits Taken 2 | . 1 1 . . Unknown Exits Taken 2 | 1 . . 1 . Scrap Searched 3 | . . 1 2 . Spaces Dug 5 | . . . 5 . Terrain Destroyed 118 | . . 74 17 27 Melee . | . . . . . Projectile . | . . . . . AOE 118 | . . 74 17 27 Terrain Rammed . | . . . . . Walls Destroyed . | . . . . . Machines Disabled . | . . . . . Actions | -11 -10 -10 -10 -8 --------- Run | Yrd Mat Min Sub Mat Total 2633 | 72 958 731 689 183 Wait 289 | . 133 83 20 53 Move 2094 | 60 734 591 627 82 Hop . | . . . . . Pick Up 47 | 4 30 8 4 1 Fast Attach 9 | 6 1 1 . 1 Attach 18 | . 1 5 3 9 Detach 3 | . . . . 3 Swap 22 | . 12 7 1 2 Drop 25 | . 12 9 4 . Fire 125 | 2 35 27 29 32 Melee . | . . . . . Ram . | . . . . . Kick . | . . . . . Crush . | . . . . . Escape Stasis . | . . . . . Rewire . | . . . . . Trap 1 | . . . 1 . Miscellaneous . | . . . . . Route ------- -11/Scrapyard -10/Materials (discovered 5 exits: [*Mat x3] / *Min x2) -10/Mines (discovered 3 exits: [*Mat x2] / *Sub) -10/Subcaves -8/Materials History --------- Turn | Location | Event 25 | -11/Scrapyard | Discovered new exit (range 14) 112 | -11/Scrapyard | Entered Materials 347 | -10/Materials | Build established: Mutant 353 | -10/Materials | Discovered new exit (range 13) 393 | -10/Materials | Discovered new exit (range 3) 897 | -10/Materials | Discovered new exit (range 13) 1030 | -10/Materials | Discovered new exit (range 13) 1068 | -10/Materials | Discovered new exit (range 3) 1368 | -10/Materials | Identified exit to Mines 1448 | -10/Materials | Repaired Lrg. Storage Unit 1588 | -10/Materials | Entered Mines 1632 | -10/Mines | Identified exit to Subcaves 1661 | -10/Mines | Met a Derelict bent on vengeance 1692 | -10/Mines | Found the Drone Emporium 1700 | -10/Mines | Found Prototype Device 1701 | -10/Mines | Identified Splice Drone Bay 1810 | -10/Mines | Received a Mining Laser from a helpful Derelict 1846 | -10/Mines | Discovered new exit (range 6) 2013 | -10/Mines | Found a Scrap Suit stashed away for nefarious purposes 2016 | -10/Mines | Found Scrap Suit 2153 | -10/Mines | Met a Derelict who couldn't figure out how to use a Trap Extractor 2470 | -10/Mines | Learned location of Zion (-7) 2569 | -10/Mines | Discovered new exit (range 11) 2726 | -10/Mines | Entered Subcaves 3016 | -10/Subcaves | Disturbed a concealed Subdweller 3075 | -10/Subcaves | Core integrity fell below 50% 4732 | -10/Subcaves | Learned Materials emergency access door positions 4881 | -10/Subcaves | Core integrity fell below 20% 5117 | -10/Subcaves | Shifting Twisted Machinery released Shrapnel Trap 5132 | -10/Subcaves | Shifting Twisted Machinery released Sub. Power Source 5456 | -10/Subcaves | A swath of the cavern ceiling suddenly collapsed 5677 | -10/Subcaves | Discovered new exit (range 2) 5797 | -10/Subcaves | Entered Materials 5797 | -8/Materials | Evolved 4 slots: Propulsion x2, Utility x2 6246 | -8/Materials | Core integrity fell below 50% 6260 | -8/Materials | Core integrity fell below 20% 6262 | -8/Materials | Destroyed by L-31 Rogue with Katana Last Messages --------------- K-01 Serf collects debris. Overheating: Spread Laser damaged (-4). K-01 Serf collects debris. Overheating: System interference. Spread Laser temporarily disabled. Spread Laser destroyed. K-01 Serf collects debris. Overheating: Matter decay (-34). Gauss Rifle destroyed. Destroyed Gauss Rifle. R-06 Scavenger destroyed. Grenade Launcher destroyed. System corrupted: Matter fused (-5). K-01 Serf collects debris. Overheating: Core damaged (-55). Overheating: Spread Laser damaged (-2). K-01 Serf collects debris. Overheating: Core damaged (-82). U-05 Engineer lays Concrete. Spread Laser destroyed. Map ----- +----------------------------------------------------+ | | | | | | | | | | | | | | | | | | | | | | | | | | | | | | | | | | | | | | | ?????????????????????????????????????????????????? | | ?????????????????????????????????????????????????? | | ?#########??????????#????????????????????????????? | | ?# #????????### ###????????????????????????? | | ## ########## = ###??????????????????????? | | g *%= ###########+####???????? | | " g w ku l@kr%[%=[[ #???????? | | u g g s ###!** #???????? | | ## ########## ####?# #???????? | | # #????????#### ##????# #???????? | | "##### ####################### #???????? | | "#???# # + ???? | | "#???# # """ ############ ####+####????? | | #???# # """ #??????????# #????????????? | | ##### + """ #??????????# #????????????? | | ## # # #??????????# #????????????? | | ###### # """ #??????????+ #????????????? | | # # """ #??????????# ######????????????? | | # # """ #??????????+ #?????????????????? | | !# # #??????????? ??????????????????? | | # ##########??????????? ??????????????????? | | * + % #???????????????????? ??????????????????? | | # ????????????? ??????????????????? | | ! # "T??????????? ??????????????????? | | # ?????????? ??????????????????? | | =##+####+### ?????????? ??????????????????? | | ######? ??? ??????????????????????????????????? | | ??????? ???? #?????????????????????????????????? | | ??????? ????? #?????????????????????????????????? | | ??????? ??????#?????????????????????????????????? | | ??????? ???????????????????????????????????????? | +----------------------------------------------------+ Best States ------------- Heat Dissipation 31 Energy Generation 18 Energy Capacity 250 Matter Stores 300 Matter Capacity 300 Sight Range 16 Terrain Scan Density 10 Armor Coverage 950 Weapon Shielding 33 Evasion (%) 40 Recoil Reduction 2 Trap Extractor Capacity 6 Item Schematics ----------------- None Robot Schematics ------------------ None Fabricated ------------ Nothing Repaired ---------- Lrg. Storage Unit | 97% | -10/Materials Alien Tech Used ----------------- None Achievements -------------- Error 47 Factory Defaults Release The Drones! Challenges ------------ None Game ------ Seed TrapNetworkReconstructor Manual? 0 Play Time 00:54:10 Cumulative 19.6 hours Start 2025.06.22 @ 09:04:42 End 2025.06.22 @ 09:59:17 Sessions 1 Manual Loads 0 Difficulty Rogue Special Mode None Game No. 20 Rogue 20 Adventurer 0 Explorer 0 Win Type - Total 0 Types 0/0/0/0/0/0/0/0/0/0 Lore% 12 Gallery% 15 Achievement% 16 Wizard Run 0 Options --------- Layout 1 ASCII 0 Keyboard 0 Movement Mouse Keybinds 0 Fullscreen 1 Font 24/Smallcaps Map View 50x35 Zoom Use 0% Tactical HUD 0 Map Filters NONE Filters NONE Steam 1 RUN: bfc05ccc-c121-4ea5-9d09-95790962b178